Workbook

Sheet Vents (hidden)
I2: =SUM(I8:I65536) -> 792,817.00
A7: N° | B7: Date | C7: Désignation | D7: Qts | E7: P,Achat | F7: P,Vent | G7: M,Achat | H7: M,Vent | I7: Bénefice
A8: 1 | B8: 2010-02-12 | C8: Adaptateur Parléle / USB | D8: 2 | E8: 380,00 | F8: 1,500.00 | G8: =E8*D8 -> 760.00 | H8: =F8*D8 -> 3,000.00 | I8: =H8-G8 -> 2,240.00
A9: 2 | B9: 2013-02-13 | C9: Cable Alimentation Simple | D9: 9 | E9: 25,00 | F9: 150.00 | G9: 225.00 | H9: 1,350.00 | I9: 1,125.00
A10: 3 | B10: 2013-02-12 | C10: Cable Alimentation Simple | D10: 6 | E10: 28,00 | F10: 200.00 | G10: 168.00 | H10: 1,200.00 | I10: 1,032.00
A11: 4 | B11: 2013-05-14 | C11: Cable Onduleur Simple | D11: 6 | E11: 30,00 | F11: 150.00 | G11: 180.00 | H11: 900.00 | I11: 720.00
A12: 3 | B12: 2015-03-22 | C12: Adaptateur PS2 / USB Game Pad | D12: 3 | E12: 450,00 | F12: 1,450.00 | G12: 1,350.00 | H12: 4,350.00
A13: 4 | B13: 2015-03-22 | C13: Cable Secteur | D13: 5 | E13: 45,00 | F13: 145.00 | G13: 225.00 | H13: 725.00
A14: 5 | B14: 2015-03-22 | C14: Adaptateur SATA / IDE | D14: 2 | E14: 300,00 | F14: 2,500.00 | G14: 600.00 | H14: 5,000.00
A15: 8 | B15: 2015-12-02 | C15: mehdi | D15: 1 | E15: 43,340.00 | F15: 53,340.00 | G15: 43,340.00 | H15: 53,340.00 | I15: 10,000.00
A16: 9 | B16: 2015-12-03 | C16: bouzna | D16: 1 | E16: 43,340.00 | F16: 53,340.00 | G16: 43,340.00 | H16: 53,340.00 | I16: 10,000.00
A17: 10 | B17: 2015-12-02 | C17: naya how | D17: 5 | E17: 36,460.00 | F17: 190,000.00 | G17: 182,300.00 | H17: 950,000.00 | I17: 767,700.00
G18: 0.00 | H18: 0.00 | I18: 0
G19: 0.00 | H19: 0.00 | I19: 0.00
G20: 0.00 | H20: 0.00 | I20: 0.00
G21: 0.00 | H21: 0.00 | I21: 0.00
G22: 0.00 | H22: 0.00 | I22: 0.00
G23: 0.00 | H23: 0.00 | I23: 0.00
G24: 0.00 | H24: 0.00 | I24: 0.00
G25: 0.00 | H25: 0.00 | I25: 0.00
G26: 0.00 | H26: 0.00 | I26: 0.00
G27: 0.00 | H27: 0.00 | I27: 0.00
G28: 0.00 | H28: 0.00 | I28: 0.00
G29: 0.00 | H29: 0.00 | I29: 0.00
G30: 0.00 | H30: 0.00 | I30: 0.00
G31: 0.00 | H31: 0.00 | I31: 0.00
G32: 0.00 | H32: 0.00 | I32: 0.00
G33: 0.00 | H33: 0.00 | I33: 0.00
G34: 0.00 | H34: 0.00 | I34: 0.00
G35: 0.00 | H35: 0.00 | I35: 0.00
G36: 0.00 | H36: 0.00 | I36: 0.00
G37: 0.00 | H37: 0.00 | I37: 0.00
G38: 0.00 | H38: 0.00 | I38: 0.00
G39: 0.00 | H39: 0.00 | I39: 0.00
G40: 0.00 | H40: 0.00 | I40: 0.00
G41: 0.00 | H41: 0.00 | I41: 0.00
G42: 0.00 | H42: 0.00 | I42: 0.00
G43: 0.00 | H43: 0.00 | I43: 0.00
G44: 0.00 | H44: 0.00 | I44: 0.00
G45: 0.00 | H45: 0.00 | I45: 0.00
G46: 0.00 | H46: 0.00 | I46: 0.00
G47: 0.00 | H47: 0.00 | I47: 0.00
G48: 0.00 | H48: 0.00 | I48: 0.00
G49: 0.00 | H49: 0.00 | I49: 0.00
G50: 0.00 | H50: 0.00 | I50: 0.00
G51: 0.00 | H51: 0.00 | I51: 0.00
G52: 0.00 | H52: 0.00 | I52: 0.00
G53: 0.00 | H53: 0.00 | I53: 0.00
G54: 0.00 | H54: 0.00 | I54: 0.00
G55: 0.00 | H55: 0.00 | I55: 0.00
G56: 0.00 | H56: 0.00 | I56: 0.00
G57: 0.00 | H57: 0.00 | I57: 0.00
G58: 0.00 | H58: 0.00 | I58: 0.00
G59: 0.00 | H59: 0.00 | I59: 0.00
G60: 0.00 | H60: 0.00 | I60: 0.00
G61: 0.00 | H61: 0.00 | I61: 0.00
G62: 0.00 | H62: 0.00 | I62: 0.00
G63: 0.00 | H63: 0.00 | I63: 0.00
G64: 0.00 | H64: 0.00 | I64: 0.00
G65: 0.00 | H65: 0.00 | I65: 0.00
G66: 0.00 | H66: 0.00 | I66: 0.00
G67: 0.00 | H67: 0.00 | I67: 0.00
G68: 0.00 | H68: =F68*D68 -> 0.00 | I68: =H68-G68 -> 0.00
G69: 0.00 | H69: 0.00 | I69: 0.00
G70: 0.00 | H70: 0.00 | I70: 0.00
G71: 0.00 | H71: 0.00 | I71: 0.00
G72: =E72*D72 -> 0.00 | H72: 0.00 | I72: 0.00
G73: 0.00 | H73: 0.00 | I73: 0.00
G74: 0.00 | H74: 0.00 | I74: 0.00
G75: 0.00 | H75: 0.00 | I75: 0.00
G76: 0.00 | H76: 0.00 | I76: 0.00
G77: 0.00 | H77: 0.00 | I77: 0.00
G78: 0.00 | H78: 0.00 | I78: 0.00
G79: 0.00 | H79: 0.00 | I79: 0.00
G80: 0.00 | H80: 0.00 | I80: 0.00
G81: 0.00 | H81: 0.00 | I81: 0.00
G82: 0.00 | H82: 0.00 | I82: 0.00
G83: 0.00 | H83: 0.00 | I83: 0.00
G84: 0.00 | H84: 0.00 | I84: 0.00
G85: 0.00 | H85: 0.00 | I85: 0.00
G86: 0.00 | H86: 0.00 | I86: 0.00
G87: 0.00 | H87: 0.00 | I87: 0.00
G88: 0.00 | H88: 0.00 | I88: 0.00
G89: 0.00 | H89: 0.00 | I89: 0.00
G90: 0.00 | H90: 0.00 | I90: 0.00
G91: 0.00 | H91: 0.00 | I91: 0.00
G92: 0.00 | H92: 0.00 | I92: 0.00
G93: 0.00 | H93: 0.00 | I93: 0.00
G94: 0.00 | H94: 0.00 | I94: 0.00
G95: 0.00 | H95: 0.00 | I95: 0.00
G96: 0.00 | H96: 0.00 | I96: 0.00
G97: 0.00 | H97: 0.00 | I97: 0.00
G98: 0.00 | H98: 0.00 | I98: 0.00
G99: 0.00 | H99: 0.00 | I99: 0.00
G100: 0.00 | H100: 0.00 | I100: 0.00
G101: 0.00 | H101: 0.00 | I101: 0.00
G102: 0.00 | H102: 0.00 | I102: 0.00
G103: 0.00 | H103: 0.00 | I103: 0.00
G104: 0.00 | H104: 0.00 | I104: 0.00
G105: 0.00 | H105: 0.00 | I105: 0.00
G106: 0.00 | H106: 0.00 | I106: 0.00
G107: 0.00 | H107: 0.00 | I107: 0.00
G108: 0.00 | H108: 0.00 | I108: 0.00
G109: 0.00 | H109: 0.00 | I109: 0.00
G110: 0.00 | H110: 0.00 | I110: 0.00
G111: 0.00 | H111: 0.00 | I111: 0.00
G112: 0.00 | H112: 0.00 | I112: 0.00
G113: 0.00 | H113: 0.00 | I113: 0.00
G114: 0.00 | H114: 0.00 | I114: 0.00
G115: 0.00 | H115: 0.00 | I115: 0.00
G116: 0.00 | H116: 0.00 | I116: 0.00
G117: 0.00 | H117: 0.00 | I117: 0.00
G118: 0.00 | H118: 0.00 | I118: 0.00
G119: 0.00 | H119: 0.00 | I119: 0.00
G120: 0.00 | H120: 0.00 | I120: 0.00
G121: 0.00 | H121: 0.00 | I121: 0.00
G122: 0.00 | H122: 0.00 | I122: 0.00
G123: 0.00 | H123: 0.00 | I123: 0.00
G124: 0.00 | H124: 0.00 | I124: 0.00
G125: 0.00 | H125: 0.00 | I125: 0.00
G126: 0.00 | H126: 0.00 | I126: 0.00
G127: 0.00 | H127: 0.00 | I127: 0.00
G128: 0.00 | H128: 0.00 | I128: 0.00
G129: 0.00 | H129: 0.00 | I129: 0.00
G130: 0.00 | H130: 0.00 | I130: 0.00
G131: 0.00 | H131: 0.00 | I131: 0.00
G132: 0.00 | H132: =F132*D132 -> 0.00 | I132: =H132-G132 -> 0.00
G133: 0.00 | H133: 0.00 | I133: 0.00
G134: 0.00 | H134: 0.00 | I134: 0.00
G135: 0.00 | H135: 0.00 | I135: 0.00
G136: =E136*D136 -> 0.00 | H136: 0.00 | I136: 0.00
G137: 0.00 | H137: 0.00 | I137: 0.00
G138: 0.00 | H138: 0.00 | I138: 0.00
G139: 0.00 | H139: 0.00 | I139: 0.00
G140: 0.00 | H140: 0.00 | I140: 0.00
G141: 0.00 | H141: 0.00 | I141: 0.00
G142: 0.00 | H142: 0.00 | I142: 0.00
G143: 0.00 | H143: 0.00 | I143: 0.00
G144: 0.00 | H144: 0.00 | I144: 0.00
G145: 0.00 | H145: 0.00 | I145: 0.00
G146: 0.00 | H146: 0.00 | I146: 0.00
G147: 0.00 | H147: 0.00 | I147: 0.00
G148: 0.00 | H148: 0.00 | I148: 0.00
G149: 0.00 | H149: 0.00 | I149: 0.00
G150: 0.00 | H150: 0.00 | I150: 0.00
G151: 0.00 | H151: 0.00 | I151: 0.00
G152: 0.00 | H152: 0.00 | I152: 0.00
G153: 0.00 | H153: 0.00 | I153: 0.00
G154: 0.00 | H154: 0.00 | I154: 0.00
G155: 0.00 | H155: 0.00 | I155: 0.00
G156: 0.00 | H156: 0.00 | I156: 0.00
G157: 0.00 | H157: 0.00 | I157: 0.00
G158: 0.00 | H158: 0.00 | I158: 0.00
G159: 0.00 | H159: 0.00 | I159: 0.00
G160: 0.00 | H160: 0.00 | I160: 0.00
G161: 0.00 | H161: 0.00 | I161: 0.00
G162: 0.00 | H162: 0.00 | I162: 0.00
G163: 0.00 | H163: 0.00 | I163: 0.00
G164: 0.00 | H164: 0.00 | I164: 0.00
G165: 0.00 | H165: 0.00 | I165: 0.00
G166: 0.00 | H166: 0.00 | I166: 0.00
G167: 0.00 | H167: 0.00 | I167: 0.00
G168: 0.00 | H168: 0.00 | I168: 0.00
G169: 0.00 | H169: 0.00 | I169: 0.00
G170: 0.00 | H170: 0.00 | I170: 0.00
G171: 0.00 | H171: 0.00 | I171: 0.00
G172: 0.00 | H172: 0.00 | I172: 0.00
G173: 0.00 | H173: 0.00 | I173: 0.00
G174: 0.00 | H174: 0.00 | I174: 0.00
G175: 0.00 | H175: 0.00 | I175: 0.00
G176: 0.00 | H176: 0.00 | I176: 0.00
G177: 0.00 | H177: 0.00 | I177: 0.00
G178: 0.00 | H178: 0.00 | I178: 0.00
G179: 0.00 | H179: 0.00 | I179: 0.00
G180: 0.00 | H180: 0.00 | I180: 0.00
G181: 0.00 | H181: 0.00 | I181: 0.00
G182: 0.00 | H182: 0.00 | I182: 0.00
G183: 0.00 | H183: 0.00 | I183: 0.00
G184: 0.00 | H184: 0.00 | I184: 0.00
G185: 0.00 | H185: 0.00 | I185: 0.00
G186: 0.00 | H186: 0.00 | I186: 0.00
G187: 0.00 | H187: 0.00 | I187: 0.00
G188: 0.00 | H188: 0.00 | I188: 0.00
G189: 0.00 | H189: 0.00 | I189: 0.00
G190: 0.00 | H190: 0.00 | I190: 0.00
G191: 0.00 | H191: 0.00 | I191: 0.00
G192: 0.00 | H192: 0.00 | I192: 0.00
G193: 0.00 | H193: 0.00 | I193: 0.00
G194: 0.00 | H194: 0.00 | I194: 0.00
G195: 0.00 | H195: 0.00 | I195: 0.00
G196: 0.00 | H196: =F196*D196 -> 0.00 | I196: =H196-G196 -> 0.00
G197: 0.00 | H197: 0.00 | I197: 0.00
G198: 0.00 | H198: 0.00 | I198: 0.00
G199: 0.00 | H199: 0.00 | I199: 0.00
G200: =E200*D200 -> 0.00 | H200: 0.00 | I200: 0.00
G201: 0.00 | H201: 0.00 | I201: 0.00
G202: 0.00 | H202: 0.00 | I202: 0.00
G203: 0.00 | H203: 0.00 | I203: 0.00
G204: 0.00 | H204: 0.00 | I204: 0.00
G205: 0.00 | H205: 0.00 | I205: 0.00
... 190 more rows

Sheet Stocks (hidden)
B2: Janvier | C2: Stocks | E2: =SUM(E12:E593) -> 5,655,029.00 | F2: =TODAY() -> 2015-04-20
A11: N | B11: Produits | C11: P.Achat | D11: Qté | E11: Montant | F11: Date d'achat | G11: Garentie | H11: Fournisseur | I11: Numéro de série | J11: Mode payement
A12: 1 | B12: Adaptateur Audio / USB | C12: 15,000.00 | D12: 10 | E12: 375,000.00 | F12: 2010-02-12 | G12: SANS | H12: Logitech | I12: ADS250FIOR452 | J12: A terme
A13: 2 | B13: Adaptateur Parléle / USB | C13: 380.00 | D13: 10 | E13: =D13*C13 -> 3,800.00 | F13: 2014-02-12 | G13: sans | H13: logitech | I13: 1234567890
A14: 3 | B14: Adaptateur PS2 / USB Game Pad | C14: 450.00 | D14: 7 | E14: =D14*C14 -> 3,150.00 | F14: 2012-02-20 | G14: 24 mois | H14: Tec | I14: 26510
A15: 4 | B15: Adaptateur SATA / IDE | C15: 300.00 | D15: 10 | E15: =D15*C15 -> 3,000.00 | F15: 2013-12-02 | G15: Sans | H15: New- | I15: 270
A16: 5 | B16: Alimentation 550W | C16: 541.00 | D16: 10 | E16: 7,033.00 | F16: 2015-02-12 | G16: 6 MOIS | H16: LOGITECH | J16: A terme
A17: 6 | B17: Alimentation P3 | C17: 450.00 | D17: 5 | E17: =D17*C17 -> 2,250.00
A18: 7 | B18: Alimentation P4 Scoop 450 W | C18: 580.00 | D18: 8 | E18: =D18*C18 -> 4,640.00
A19: 8 | B19: Alimentation Scoop 550W | C19: 585.00 | D19: 10 | E19: 29,250.00 | F19: 2015-02-08 | G19: Marche | H19: NEW-TEC | I19: 45-72 | J19: Espece
A20: 9 | B20: Antivirus KASPERSKY 3 Poste | C20: 2,100.00 | D20: 10 | E20: =D20*C20 -> 21,000.00
A21: 10 | B21: Bletooth Nova | C21: 152.00 | D21: 20 | E21: 3,040.00 | F21: 2010-12-02 | G21: sans | H21: MATOS | I21: seri | J21: A terme
A22: 11 | B22: Boite Alimentation P55 | C22: 15,250.00 | D22: 1 | E22: 76,250.00 | F22: 2015-02-22 | G22: sans | H22: CECI | I22: gjgjfgfjg | J22: Espesse
A23: 12 | B23: Boitier Aerocool Strike-X GT | C23: 5,660.00 | D23: 0 | E23: =D23*C23 -> 0
A24: 13 | B24: Boitier Aerocool VS-3 | C24: 2,560.00 | D24: 8 | E24: 20,480.00
A25: 14 | B25: Boitier DIAMOND Bindele | C25: 2,530.00 | D25: 10 | E25: 25,300.00
A26: 15 | B26: Cable Alimentation Laptop | C26: 120.00 | D26: 10 | E26: 1,200.00
A27: 16 | B27: Cable Alimentation Sata | C27: 20.00 | D27: 10 | E27: 200.00
A28: 17 | B28: Cable Alimentation Simple | C28: 25.00 | D28: 1 | E28: 25.00
A29: 18 | B29: Cable Alimentation Simple | C29: 28.00 | D29: 4 | E29: 112.00
A30: 19 | B30: Cable Alimentation Super | C30: 90.00 | D30: 10 | E30: 900.00
A31: 20 | B31: Cable Audio | C31: 100.00 | D31: 4 | E31: 400.00
A32: 21 | B32: Cable HDMI-HDMI 1,5 M | C32: 200.00 | D32: 10 | E32: 2,000.00
A33: 22 | B33: Cable HDMI-HDMI 1,5 M | C33: 180.00 | D33: 10 | E33: 1,800.00
A34: 23 | B34: Cable Imp 1,5 M USB 2,0 | C34: 50.00 | D34: 10 | E34: 500.00
A35: 24 | B35: Cable Imp 3 M | C35: 100.00 | D35: 10 | E35: 1,000.00
A36: 25 | B36: Cable Imp Transparent 1,5 M | C36: 55.00 | D36: 6 | E36: 330.00
A37: 26 | B37: Cable Jak | C37: 95.00 | D37: 10 | E37: 950.00
A38: 27 | B38: Cable MP4 | C38: 35.00 | D38: 8 | E38: 280.00
A39: 28 | B39: Cable Onduleur Lux | C39: 95.00 | D39: 10 | E39: 950.00
A40: 29 | B40: Cable Onduleur Simple | C40: 30.00 | D40: 4 | E40: 120.00
A41: 30 | B41: Cable Onduleur Simple | C41: 28.00 | D41: 10 | E41: 280.00
A42: 31 | B42: Cable Réseau 1,5 M | C42: 35.00 | D42: 10 | E42: 350.00
A43: 32 | B43: Cable Réseau 1,5 M | C43: 45.00 | D43: 10 | E43: 450.00
A44: 33 | B44: Cable Réseau 10 M | C44: 150.00 | D44: 10 | E44: 1,500.00
A45: 34 | B45: Cable Réseau 20 M | C45: 240.00 | D45: 10 | E45: 2,400.00
A46: 35 | B46: Cable Réseau 30 M | C46: 370.00 | D46: 10 | E46: 3,700.00
A47: 36 | B47: Cable Réseau 40 M | C47: 450.00 | D47: 10 | E47: 4,500.00
A48: 37 | B48: Cable Réseau 40 M | C48: 460.00 | D48: 10 | E48: 4,600.00
A49: 38 | B49: Cable Réseau 5 M | C49: 100.00 | D49: 10 | E49: 1,000.00
A50: 39 | B50: Cable Réseau 50 M | C50: 560.00 | D50: 8 | E50: 4,480.00
A51: 40 | B51: Cable Réseau 50 M Catégorie 6 | C51: 850.00 | D51: 10 | E51: 8,500.00
A52: 41 | B52: Cable Secteur | C52: 45.00 | D52: 5 | E52: 225.00
A53: 42 | B53: Cable Teléphone 3 M | C53: 40.00 | D53: 10 | E53: 400.00
A54: 43 | B54: Cable USB | C54: 45.00 | D54: 10 | E54: 450.00
A55: 44 | B55: Cable USB 1,5 INTEX mal/mal | C55: 90.00 | D55: 10 | E55: =D55*C55 -> 900.00
A56: 45 | B56: Cable USB Extention 1,5 M Lux | C56: 95.00 | D56: 10 | E56: 950.00
A57: 46 | B57: Cable USB Extention 5 M | C57: 120.00 | D57: 10 | E57: 1,200.00
A58: 47 | B58: Cable USB Pliable | C58: 60.00 | D58: 10 | E58: 600.00
A59: 48 | B59: Cable VGA 1,5M | C59: 100.00 | D59: 7 | E59: 700.00
A60: 49 | B60: Cable VGA 1,5M | C60: 90.00 | D60: 10 | E60: 900.00
A61: 50 | B61: Carte graphique 1 Go PCI-E MSI GT 430 4GB DDR3 | C61: 7,900.00 | D61: 1 | E61: 7,900.00
A62: 51 | B62: Carte graphique 1 Go PCI-E Palite GF 210 | C62: 2,600.00 | D62: 10 | E62: 26,000.00
A63: 52 | B63: Carte graphique 1 Go PCI-E Palite GT520 2 GB | C63: 4,150.00 | D63: 10 | E63: 41,500.00
A64: 53 | B64: Carte graphique 1 Go PCI-E Point of Veiw GT520 2 GB | C64: 5,400.00 | D64: 5 | E64: 27,000.00
A65: 54 | B65: Carte graphique 1 Go PCI-E SAPPHIRE 6770 Vapor-x 1 GB DDR 5 | C65: 11,400.00 | D65: 10 | E65: 114,000.00
A66: 55 | B66: Carte graphique Leadtek GT 620 B ATX 2 GB | C66: 5,300.00 | D66: 10 | E66: 53,000.00
A67: 56 | B67: Carte graphique Leadtek GT 640 ATX 2 GB | C67: 8,800.00 | D67: 10 | E67: 88,000.00
A68: 57 | B68: Carte graphique Leadtek GTX 650 OC 1 GB DDR 5 Dual Fan | C68: 12,200.00 | D68: 10 | E68: 122,000.00
A69: 58 | B69: Carte graphique Leadtek GTX 650 STD 1 GB DDR5 | C69: 10,700.00 | D69: 10 | E69: 107,000.00
A70: 59 | B70: Carte Mémoire 4 Go | C70: 300.00 | D70: 10 | E70: 3,000.00
A71: 60 | B71: Carte Mémoire 8 Go | C71: 650.00 | D71: 10 | E71: 6,500.00
A72: 61 | B72: Carte Mére ASROCK H61M-VS | C72: 3,900.00 | D72: 7 | E72: 27,300.00
A73: 62 | B73: Carte Mére Gigabyte G41MT-S2PT | C73: 4,750.00 | D73: 10 | E73: 47,500.00
A74: 63 | B74: Carte Mére Gigabyte GA-B75M-D3H LGA 1155 | C74: 8,150.00 | D74: 10 | E74: 81,500.00
A75: 64 | B75: Carte Mére MSI G41 P26 | C75: 3,750.00 | D75: 5 | E75: 18,750.00
A76: 65 | B76: Carte Mére MSI H61M-E23 1155 | C76: 4,900.00 | D76: 10 | E76: 49,000.00
A77: 66 | B77: Carte mere P4 LOGICOM | C77: 3,700.00 | D77: 10 | E77: 37,000.00
A78: 67 | B78: Carte reseau INTEX | C78: 260.00 | D78: 10 | E78: 2,600.00
A79: 68 | B79: Carte reseau sans fil 150 MP + Enttene | C79: 1,200.00 | D79: 10 | E79: 12,000.00
A80: 69 | B80: Carte reseau sans fil 300 MP sans antaie | C80: 1,600.00 | D80: 10 | E80: 16,000.00
A81: 70 | B81: Carte reseau WIFI WEB LINK USB | C81: 2,200.00 | D81: 10 | E81: 22,000.00
A82: 71 | B82: Carte Satilite Skey star 2 | C82: 3,950.00 | D82: 10 | E82: 39,500.00
A83: 72 | B83: Carte son | C83: 280.00 | D83: 10 | E83: 2,800.00
A84: 73 | B84: Cartouche EPSON 711 | C84: 265.00 | D84: 10 | E84: 2,650.00
A85: 74 | B85: Cartouche EPSON CX / C 79 Noire | C85: 100.00 | D85: 10 | E85: 1,000.00
A86: 75 | B86: Cartouche EPSON CX 921/711 | C86: 285.00 | D86: 10 | E86: 2,850.00
A87: 76 | B87: Cartouche EPSON N D78 | C87: 65.00 | D87: 10 | E87: =D87*C87 -> 650.00
A88: 77 | B88: Cartouche EPSON SX 125/130 | C88: 490.00 | D88: 10 | E88: 4,900.00
A89: 78 | B89: Cartouche EPSON SX 125/130 Noir | C89: 125.00 | D89: 10 | E89: 1,250.00
A90: 79 | B90: Cartouche rechargable | C90: 340.00 | D90: 10 | E90: 3,400.00
A91: 80 | B91: Casque Creative CR-888 | C91: 280.00 | D91: 10 | E91: 2,800.00
A92: 81 | B92: Casque DUNTH DU-808 | C92: 260.00 | D92: 10 | E92: 2,600.00
A93: 82 | B93: Casque DUNTH DU-808MV | C93: 200.00 | D93: 10 | E93: 2,000.00
A94: 83 | B94: Casque Dunth DU-922 | C94: 500.00 | D94: 10 | E94: 5,000.00
A95: 84 | B95: Casque PHILIPS | C95: 380.00 | D95: 10 | E95: 3,800.00
A96: 85 | B96: Casque Pilot | C96: 150.00 | D96: 10 | E96: 1,500.00
A97: 86 | B97: Casque Pilot Bleu | C97: 190.00 | D97: 10 | E97: 1,900.00
A98: 87 | B98: Casque Sb bliable | C98: 300.00 | D98: 10 | E98: 3,000.00
A99: 88 | B99: Casque SC-158 MV | C99: 480.00 | D99: 10 | E99: 4,800.00
A100: 89 | B100: Casque STAR IPN-HD 212 | C100: 250.00 | D100: 10 | E100: 2,500.00
A101: 90 | B101: Casque STAR ST-050 | C101: 460.00 | D101: 10 | E101: 4,600.00
A102: 91 | B102: Casque STAR ST-063 M Lux | C102: 320.00 | D102: 10 | E102: 3,200.00
A103: 92 | B103: Casque Ucom 508 | C103: 320.00 | D103: 10 | E103: 3,200.00
A104: 93 | B104: Casque Ucom 8118 | C104: 320.00 | D104: 10 | E104: 3,200.00
A105: 94 | B105: Casque Ucom 8828 | C105: 320.00 | D105: 10 | E105: 3,200.00
A106: 95 | B106: Casque Ucom 9775 | C106: 320.00 | D106: 10 | E106: 3,200.00
A107: 96 | B107: Casque Ucom 9778 | C107: 320.00 | D107: 10 | E107: 3,200.00
A108: 97 | B108: Casque Ucom 9945 | C108: 270.00 | D108: 10 | E108: 2,700.00
A109: 98 | B109: CD Gravé | C109: 75.00 | D109: 10 | E109: 750.00
A110: 99 | B110: CD Netoyage | C110: 25.00 | D110: 10 | E110: 250.00
A111: 100 | B111: CD Vierge Princo 700 Mb | C111: 825.00 | D111: 10 | E111: 8,250.00
A112: 101 | B112: Chaise Opérateur | C112: 2,050.00 | D112: 10 | E112: 20,500.00
A113: 102 | B113: Chargeur Lapop 96W | C113: 950.00 | D113: 10 | E113: 9,500.00
A114: 103 | B114: Clavier Multi media 102 Turbo PS2 | C114: 800.00 | D114: 10 | E114: 8,000.00
A115: 104 | B115: Clavier Multi media Cooler Master USB | C115: 1,600.00 | D115: 10 | E115: 16,000.00
A116: 105 | B116: Clavier Multi media Diamond 618 PS2 | C116: 275.00 | D116: 10 | E116: 2,750.00
A117: 106 | B117: Clavier Multi media Diamond 618 USB | C117: 280.00 | D117: 10 | E117: 2,800.00
A118: 107 | B118: Clavier Multi media Golden USB | C118: 300.00 | D118: 10 | E118: 3,000.00
A119: 108 | B119: Clavier Multi media Intex 1017 PS2 | C119: 350.00 | D119: 10 | E119: =D119*C119 -> 3,500.00
A120: 109 | B120: Clavier Multi media SAMSUNG PKB-7000X USB +HUB | C120: 1,700.00 | D120: 10 | E120: 17,000.00
A121: 110 | B121: Clavier Multi media SMART KB-2608 PS2 | C121: 350.00 | D121: 10 | E121: 3,500.00
A122: 111 | B122: Clavier Multi media SMART KB-2609 PS2 | C122: 350.00 | D122: 10 | E122: 3,500.00
A123: 112 | B123: Clavier Multi media STAR ST-K8002 USB | C123: 300.00 | D123: 10 | E123: 3,000.00
A124: 113 | B124: Clavier Multi media Tech-com 805 PS2 | C124: 280.00 | D124: 10 | E124: 2,800.00
A125: 114 | B125: couche | C125: 1250 | D125: 2 | E125: 2500 | F125: 2014-02-12 | G125: 6mois | H125: dada
A126: 115 | B126: Disque dur | C126: 2950 | D126: 6 | E126: 191750 | F126: 2015-02-19 | H126: MICRO-ALGERIE | J126: A terme
A127: 116 | B127: Disque Dur 160 Go Segate IDE | C127: 2,700.00 | D127: -1 | E127: =D127*C127 -> -2,700.00
A128: 117 | B128: Disque Dur 160 Go Segate IDE | C128: 2,650.00 | D128: 10 | E128: 26,500.00
A129: 118 | B129: Disque dur 1Tb Toshiba Sata | C129: 7,700.00 | D129: 10 | E129: 77,000.00
A130: 119 | B130: Disque dur 300 Go Ségate Sata | C130: 4,300.00 | D130: 10 | E130: 43,000.00
A131: 120 | B131: Disque dur 500 Go Samsung Sata | C131: 4,050.00 | D131: 10 | E131: 40,500.00
A132: 121 | B132: Disque dur 500 Go TOSHIBA Externe USB 3 | C132: 7,800.00 | D132: 10 | E132: 78,000.00
A133: 122 | B133: Disque dur 500 Go Toshiba Sata | C133: 6,000.00 | D133: 10 | E133: 60,000.00
A134: 123 | B134: DVD Jeux Lux | C134: 50.00 | D134: 10 | E134: 500.00
A135: 124 | B135: DVD Vierge 8,5 GB | C135: 85.00 | D135: 10 | E135: 850.00
A136: 125 | B136: DVD Vierge PRINCO 4,7 GB | C136: 1,225.00 | D136: 10 | E136: 12,250.00
A137: 126 | B137: DVD Vierge PRINCO 4,7 GB SLIM | C137: 20.00 | D137: 10 | E137: 200.00
A138: 127 | B138: Ecran TFT AOC 20" LED | C138: 8,750.00 | D138: 0 | E138: 0
A139: 128 | B139: Ecran TFT AOC 20" LED | C139: 8,700.00 | D139: 10 | E139: 87,000.00
A140: 129 | B140: Ecran TFT AOC 22" LED Ultra slim | C140: 12,500.00 | D140: 10 | E140: 125,000.00
A141: 130 | B141: Ecran TFT AOC 24" LED Ultra slim DVI | C141: 14,950.00 | D141: 5 | E141: 74,750.00
A142: 131 | B142: Ecran TFT LG 22" LED | C142: 11,600.00 | D142: 10 | E142: 116,000.00
A143: 132 | B143: Ecran TFT LG 22"LCD | C143: 12,800.00 | D143: 10 | E143: 128,000.00
A144: 133 | B144: Ecran TFT SAMSUNG 19" LCD | C144: 7,300.00 | D144: 10 | E144: 73,000.00
A145: 134 | B145: Ecran TFT SAMSUNG 20" LED | C145: 10,000.00 | D145: 10 | E145: 100,000.00
A146: 135 | B146: Ecran TFT SAMSUNG 22" LCD | C146: 12,900.00 | D146: 10 | E146: 129,000.00
A147: 136 | B147: Ecran TFT SAMSUNG 22" LED | C147: 11,900.00 | D147: 10 | E147: 119,000.00
A148: 137 | B148: Encre de recharge 4 Couleurs | C148: 210.00 | D148: 10 | E148: 2,100.00
A149: 138 | B149: Fiche Jac | C149: 95.00 | D149: 10 | E149: 950.00
A150: 139 | B150: Filtre ADSL | C150: 60.00 | D150: 10 | E150: 600.00
A151: 140 | B151: Flash disk 16 Go APACER AH 322 | C151: 1,200.00 | D151: 10 | E151: 12,000.00
A152: 141 | B152: Flash disk 4 Go APACER AH 322 | C152: 500.00 | D152: 10 | E152: 5,000.00
A153: 142 | B153: Flash disk 8 Go APACER AH 322 | C153: 680.00 | D153: 10 | E153: 6,800.00
A154: 143 | B154: Flash Disque 4 GB Verbatim | C154: 3650 | D154: 14 | E154: 51100 | F154: 2015-01-25 | H154: CECI | J154: A terme
A155: 144 | B155: Flash Disque 8 GB Toshiba | C155: 3654 | D155: 12 | E155: 43848 | F155: 2015-01-15 | H155: LOGITECH | J155: A terme
A156: 145 | B156: Graveur DVD SAMSUNG Sata | C156: 1,800.00 | D156: -2 | E156: =D156*C156 -> -3,600.00
A157: 146 | B157: Graveur DVD SAMSUNG Sata | C157: 1,750.00 | D157: 10 | E157: 17,500.00
A158: 147 | B158: Haut parleul BDG-8026 USB | C158: 250.00 | D158: 10 | E158: 2,500.00
A159: 148 | B159: Haut parleul BLEU 2030 USB | C159: 280.00 | D159: 10 | E159: 2,800.00
A160: 149 | B160: Haut parleul MS051 | C160: 4,600.00 | D160: 10 | E160: 46,000.00
A161: 150 | B161: Haut parleul Simple | C161: 240.00 | D161: 10 | E161: 2,400.00
A162: 151 | B162: Haut parleul STAR USB | C162: 260.00 | D162: 10 | E162: 2,600.00
A163: 152 | B163: Haut parleur Mac-Tech MT-2080 | C163: 3690 | D163: 15 | E163: 55350 | F163: 2015-01-12 | H163: LOGITECH | J163: A terme
A164: 153 | B164: Haut parleur Mirage 810 | C164: 830.00 | D164: 10 | E164: =D164*C164 -> 8,300.00
A165: 154 | B165: Haut Parleur PLEOMAX 300 B | C165: 2,300.00 | D165: 10 | E165: 23,000.00
A166: 155 | B166: Haut Parleur Tech-com 401 USB | C166: 350.00 | D166: 10 | E166: 3,500.00
A167: 156 | B167: HUB Rond | C167: 180.00 | D167: 10 | E167: 1,800.00
A168: 157 | B168: HUB USB | C168: 70.00 | D168: 10 | E168: 700.00
A169: 158 | B169: Imprimante CANON LBP-6000 | C169: 7,000.00 | D169: 10 | E169: 70,000.00
A170: 159 | B170: Kit Clavier-Souris Sans fil SAMSUNG 210 | C170: 2,150.00 | D170: 10 | E170: 21,500.00
A171: 160 | B171: Kit Clavier-Souris-Hp KMS-888 | C171: 370.00 | D171: 10 | E171: 3,700.00
A172: 161 | B172: Kit netoyage ecran bleu Lux | C172: 180.00 | D172: 10 | E172: 1,800.00
A173: 162 | B173: Kit netoyage ecran simple | C173: 85.00 | D173: 10 | E173: 850.00
A174: 163 | B174: Kit netoyage ecran vert simple | C174: 110.00 | D174: 10 | E174: 1,100.00
A175: 164 | B175: Laptop Acer TavelMate I3/ 4GB/ 500 GB/ 15,6" | C175: 40,000.00 | D175: 10 | E175: 400,000.00
A176: 165 | B176: Laptop DELL 5050 B960/ 2 GB/ 320 GB/ 15,6" | C176: 39,800.00 | D176: 10 | E176: 398,000.00
A177: 166 | B177: Lecteur carte memoire 480 MB/s | C177: 95.00 | D177: 10 | E177: 950.00
A178: 167 | B178: Lecteur carte memoire G,M | C178: 180.00 | D178: 10 | E178: 1,800.00
A179: 168 | B179: Lecteur carte memoire Interieur | C179: 200.00 | D179: 10 | E179: 2,000.00
A180: 169 | B180: Lecteur carte memoire RB 539 | C180: 65.00 | D180: 10 | E180: 650.00
A181: 170 | B181: Lecteur carte memoire SDHC SY-T90 | C181: 75.00 | D181: 10 | E181: 750.00
A182: 171 | B182: Lecteur carte memoire SDHC T-55 | C182: 65.00 | D182: 10 | E182: 650.00
A183: 172 | B183: Lecteur carte memoire Siyoteam SY-568 | C183: 125.00 | D183: 10 | E183: 1,250.00
A184: 173 | B184: Lecteur carte memoire Siyoteam SY-568 | C184: 95.00 | D184: 10 | E184: 950.00
A185: 174 | B185: Lecteur carte memoire Siyoteam SY-M82 | C185: 90.00 | D185: 10 | E185: 900.00
A186: 175 | B186: Lecteur carte memoire USB SY-630 | C186: 145.00 | D186: 10 | E186: 1,450.00
A187: 176 | B187: Lecteur DVD SONY | C187: 950.00 | D187: 10 | E187: 9,500.00
A188: 177 | B188: Letre Arab / Français | C188: 55.00 | D188: 10 | E188: 550.00
A189: 178 | B189: Letre Arab / Français | C189: 50.00 | D189: 10 | E189: 500.00
A190: 179 | B190: Lingettes Mecanique 20 | C190: 130.00 | D190: 10 | E190: 1,300.00
A191: 180 | B191: Manette Lux Noir-rouge-bleu-blan | C191: 470.00 | D191: 10 | E191: 4,700.00
A192: 181 | B192: Manette Pc 2x1 Simple | C192: 260.00 | D192: 10 | E192: 2,600.00
A193: 182 | B193: Manette Pc 2x1 Simple | C193: 270.00 | D193: 10 | E193: 2,700.00
A194: 183 | B194: Manette Pc 2x1 Vibrante Ucom | C194: 480.00 | D194: 10 | E194: 4,800.00
A195: 184 | B195: Manette Pc Sans fil | C195: 850.00 | D195: 10 | E195: 8,500.00
A196: 185 | B196: Manette Pc Simple 1 Pcs | C196: 180.00 | D196: 10 | E196: =D196*C196 -> 1,800.00
A197: 186 | B197: Manette Pc Vibrante 1 Pcs | C197: 290.00 | D197: 10 | E197: 2,900.00
A198: 187 | B198: Manette PS2 Mony Blan | C198: 280.00 | D198: 10 | E198: 2,800.00
A199: 188 | B199: Manette PS2 Mony Noir embaler | C199: 210.00 | D199: 10 | E199: 2,100.00
A200: 189 | B200: Manette PS2 Sony 4 CH | C200: 300.00 | D200: 10 | E200: 3,000.00
A201: 190 | B201: Manette Vibrante Transparant | C201: 390.00 | D201: 10 | E201: 3,900.00
A202: 191 | B202: Mannette Pc Super X-BOX Vib 208 | C202: 450.00 | D202: 10 | E202: 4,500.00
A203: 192 | B203: Mannette Pc-PS2 | C203: 400.00 | D203: 10 | E203: 4,000.00
A204: 193 | B204: Mannette PS2 FONY Embalé | C204: 330.00 | D204: 10 | E204: 3,300.00
A205: 194 | B205: Mannette PS2 Sony 3 CH | C205: 350.00 | D205: 10 | E205: 3,500.00
A206: 195 | B206: Mannette PS2 Sony Blan | C206: 350.00 | D206: 10 | E206: 3,500.00
A207: 196 | B207: Mannette PS2 Sony Originale | C207: 500.00 | D207: 10 | E207: 5,000.00
A208: 197 | B208: Microphone HUNDAI USB | C208: 250.00 | D208: 10 | E208: 2,500.00
A209: 198 | B209: Microphone Petit modéle USB | C209: 190.00 | D209: 10 | E209: 1,900.00
... 799 more rows

Sheet Clients
M6: =SUM(M10:M65536) -> 64,770.00
A9: N° Opé | B9: D.Achat | C9: Client | D9: Iteme | E9: Qté | F9: P.Achat | G9: P.Vente | H9: M.Achat | I9: M.Vente | J9: Marge | K9: Versement | L9: M.Payé | M9: Réste | N9: D.Versement | O9: Observation
A10: 1 | B10: 2012-12-12 | C10: sisi | D10: Alimentation P4 Scoop 450 W | E10: 1 | F10: 570.00 | G10: 900.00 | H10: =F10*E10 -> 570.00 | I10: 900.00 | J10: 330.00 | M10: =I10-K10-L10 -> 900.00
A11: 2 | B11: 2014-02-02 | C11: LOULOUMAC | D11: Adaptateur SATA / IDE | E11: 2 | F11: 300,00 | G11: 900.00 | H11: =F11*E11 -> 600.00 | I11: =G11*E11 -> 1,800.00 | J11: =I11-H11 -> 1,200.00 | M11: =I11-K11-L11 -> 1,800.00
A12: 3 | B12: 2014-02-12 | C12: MAH | D12: Adaptateur Parléle / USB | E12: 5 | F12: 380.00 | G12: 1,500.00 | H12: =F12*E12 -> 1,900.00 | I12: =G12*E12 -> 7,500.00 | J12: =I12-H12 -> 5,600.00 | M12: 7,500.00
A13: 4 | B13: 2014-03-02 | C13: loulou | D13: Adaptateur PS2 / USB Game Pad | E13: 2 | F13: 450.00 | G13: 1,450.00 | H13: =F13*E13 -> 900.00 | I13: =G13*E13 -> 2,900.00 | J13: =I13-H13 -> 2,000.00 | M13: 2,900.00
A14: 5 | B14: 2014-02-12 | C14: bahi | D14: Adaptateur PS2 / USB Game Pad | E14: 1 | F14: 450,00 | G14: 1,450.00 | H14: 450.00 | I14: 1,450.00 | J14: 1,000.00 | M14: 1,450.00
A15: 6 | B15: 2012-02-12 | C15: lazhari | D15: Cable Onduleur Simple | E15: 2 | F15: 30,00 | G15: 150.00 | H15: 60.00 | I15: 300.00 | J15: 240.00 | M15: 300.00
A16: 7 | B16: 2012-02-02 | C16: nino | D16: Cable Onduleur Lux | E16: 2 | F16: 95,00 | G16: 250.00 | H16: 190.00 | I16: 500.00 | J16: 310.00 | K16: 125.00 | M16: 375.00
A17: 8 | B17: 2010-12-12 | C17: mpolo | D17: Cable Réseau 50 M | E17: 2 | F17: 560,00 | G17: 1,500.00 | H17: 1,120.00 | I17: 3,000.00 | J17: 1,880.00 | K17: 120.00 | M17: 2,880.00
A18: 9 | B18: 2010-02-02 | C18: mohamed | D18: Casque DUNTH DU-808MV | E18: 2 | F18: 200,00 | G18: 2,500.00 | H18: 400.00 | I18: 5,000.00 | J18: 4,600.00 | K18: 100.00 | M18: 4,900.00
A19: 10 | B19: 2010-02-02 | C19: momopo | D19: Cartouche EPSON SX 125/130 Noir | E19: 2 | F19: 125,00 | G19: 500.00 | H19: 250.00 | I19: 1,000.00 | J19: 750.00 | K19: 100.00 | M19: 900.00
A20: 11 | B20: 2014-03-12 | C20: lolololololo | D20: CD Vierge Princo 700 Mb | E20: 2 | F20: 825,00 | G20: 1,250.00 | H20: 1,650.00 | I20: 2,500.00 | J20: 850.00 | K20: 300.00 | M20: 2,200.00
A21: 12 | B21: 2014-03-23 | C21: toto | D21: Cable Réseau 50 M | E21: 2 | F21: 560,00 | G21: 840.00 | H21: 1,120.00 | I21: 1,680.00 | J21: 560.00 | K21: 680.00 | M21: 1,000.00
A22: 13 | B22: 2014-03-23 | C22: genio | D22: Alimentation P3 | E22: 2 | F22: 450,00 | G22: 1,450.00 | H22: 900.00 | I22: 2,900.00 | J22: 2,000.00 | K22: 900.00 | M22: 2,000.00
A23: 14 | B23: 2014-03-31 | C23: ferari | D23: Alimentation P4 Scoop 450 W | E23: 3 | F23: 580,00 | G23: 1,200.00 | H23: 1,740.00 | I23: 3,600.00 | J23: 1,860.00 | K23: 1,000.00 | M23: 2,600.00
A24: 15 | B24: 2014-04-27 | C24: lolololololo | D24: Cable Imp Transparent 1,5 M | E24: 4 | F24: 55,00 | G24: 150.00 | H24: 220.00 | I24: 600.00 | J24: 380.00 | K24: 50.00 | M24: 550.00
A25: 16 | B25: 2014-04-27 | C25: toto | D25: Cable MP4 | E25: 2 | F25: 35,00 | G25: 100.00 | H25: 70.00 | I25: 200.00 | J25: 130.00 | K25: 35.00 | M25: 165.00
A26: 18 | B26: 2014-10-25 | C26: KHALED | D26: Adaptateur Parléle / USB | E26: 2 | F26: 380,00 | G26: 750.00 | H26: 760.00 | I26: 1,500.00 | J26: 740.00 | K26: 100 | M26: 1,400.00
A27: 19 | B27: 2015-02-13 | C27: selimmi | D27: Boitier Aerocool VS-3 | E27: 2 | F27: 2 560,00 | G27: 5,614.00 | I27: 11,228.00 | K27: 228 | M27: 11,000.00
A28: 20 | B28: 2015-02-15 | C28: FOUADO | D28: Alimentation 550W | E28: 4 | F28: 541,00 | G28: 980.00 | H28: 2,164.00 | I28: 3,920.00 | J28: 1,756.00 | K28: 920 | M28: 3,000.00
A29: 21 | B29: 2015-02-15 | C29: HAKI | D29: Adaptateur SATA / IDE | E29: 5 | F29: 300,00 | G29: 900.00 | K29: 500 | M29: 4,000.00
A30: 22 | B30: 2015-02-15 | C30: YOUYOU | D30: Alimentation P4 Scoop 450 W | E30: 5 | F30: 580,00 | G30: 990.00 | I30: 4,950.00 | K30: 50 | M30: 4,900.00
A31: 24 | B31: 2015-02-15 | C31: RAYANE | D31: Adaptateur PS2 / USB Game Pad | E31: 3 | F31: 450,00 | G31: 1,450.00 | H31: 1,350.00 | I31: 4,350.00 | J31: 3,000.00 | K31: 350 | M31: 4,000.00
A32: 25 | B32: 2015-02-18 | C32: souad | D32: Boitier Aerocool VS-4 | E32: 3 | F32: 450,00 | G32: 1,450.00 | H32: 1,350.00 | I32: 4,350.00 | K32: 350 | M32: 3,000.00
A33: 26 | B33: 2015-02-18 | C33: SALAH | D33: Adaptateur SATA / IDE | E33: 2 | F33: 300,00 | G33: 2,500.00 | H33: 600.00 | I33: 5,000.00 | J33: 4,400.00 | L33: 850 | M33: 2900
A34: 26 | B34: 2015-03-22 | C34: lolo | D34: Boitier Aerocool Strike-X GT | E34: 3 | F34: 5 660,00 | G34: 6,660.00 | I34: 19,980.00 | K34: 980 | Q34: 19000
A35: 27 | B35: 2015-03-22 | C35: momo | D35: Alimentation P4 Scoop 450 W | E35: 2 | F35: 580,00 | G35: 680.00 | H35: 1,160.00 | I35: 1,360.00 | J35: 200.00 | K35: 60 | Q35: 1300
A36: 28 | B36: 2015-03-22 | C36: gogo | D36: Cable Audio | E36: 6 | F36: 100,00 | G36: 150.00 | H36: 600.00 | I36: 900.00 | J36: 300.00 | L36: 150 | M36: 750.00
A37: 29 | B37: 2015-03-22 | C37: hili | D37: Cable VGA 1,5M | E37: 3 | F37: 100,00 | G37: 125.00 | H37: 300.00 | I37: 375.00 | J37: 75.00 | L37: 75 | M37: 300.00
A38: 30 | B38: 2015-03-22 | C38: liol | D38: Adaptateur PS2 / USB Game Pad | E38: 3 | F38: 450,00 | G38: 1,450.00 | H38: 1,350.00 | I38: 4,350.00 | J38: 3,000.00 | K38: 4000 | L38: 350 | M38: 0 | N38: 12/02/2014
A39: 31 | B39: 2015-03-22 | C39: popo | D39: Cable Secteur | E39: 5 | F39: 45,00 | G39: 145.00 | H39: 225.00 | I39: 725.00 | J39: 500.00 | K39: 700 | L39: 25 | M39: 0 | N39: 22/04/2015
M41: 0
M42: 0
M43: 0
M44: 0
M45: 0
M46: 0
M47: 0
M48: 0
M49: 0
M50: 0
M51: 0
M52: 0
M53: 0
M54: 0
M55: 0
M56: 0
M57: 0
M58: 0
M59: 0
M60: 0
M61: 0
M62: 0
M63: 0
M64: 0
M65: 0
M66: 0
M67: 0
M68: 0
M69: 0
M70: 0
M71: =I71-K71-L71 -> 0
M72: 0
M73: 0
M74: 0
M75: 0
M76: 0
M77: 0
M78: 0
M79: 0
M80: 0
M81: 0
M82: 0
M83: 0
M84: 0
M85: 0
M86: 0
M87: 0
M88: 0
M89: 0
M90: 0
M91: 0
M92: 0
M93: 0
M94: 0
M95: 0
M96: 0
M97: 0

Sheet Fournisseurs (hidden)
H5: =SUM(H9:H19) -> 64,400.00
A8: N° | B8: Nom commercialle | C8: Gérant | D8: N° Tel | E8: N° Fax | F8: Mob | G8: Réson sociale | H8: Cédit
A9: 1 | B9: CECI | D9: 036760038 | E9: 036763800 | F9: 0550101020 | G9: el eulma | H9: -127,350.00
A10: 2 | B10: LOGITECH | D10: 036763812 | E10: 036763811 | F10: 0550246090 | G10: EL EULMA | H10: 0
A11: 4 | B11: MICRO-ALGERIE | C11: SALH | D11: 021201560 | E11: 021201492 | F11: 0550164020 | G11: ALGER | H11: 191,750.00
A12: 5 | B12: NEW-TEC | C12: LAMIN | D12: 021410020 | E12: 021521000 | F12: 05602013 | G12: ALGER
A13: 3 | B13: TARIK NEDJAH | C13: FAROUK | D13: 036762010 | E13: 036753600 | F13: 0550239720 | G13: ALGER

Sheet Vers,Clients (hidden)
A10: N° | B10: Nom Client | D10: Désignation | G10: Versement | H10: Date.Verse
A11: 1 | B11: momopo | D11: Cartouche EPSON SX 125/130 Noir | G11: 100.00
A12: 2 | B12: lolololololo | D12: CD Vierge Princo 700 Mb | G12: 100.00
A13: 3 | B13: toto | D13: Cable Réseau 50 M | G13: 200.00
A14: 4 | B14: genio | D14: Alimentation P3 | G14: 150.00
A15: 5 | B15: ferari | D15: Alimentation P4 Scoop 450 W | G15: 100.00
A16: 6 | B16: lolololololo | D16: Cable Imp Transparent 1,5 M | G16: 200.00
A17: 7 | B17: toto | D17: Cable MP4 | G17: 200.00
A18: 8 | B18: lazhari | D18: Cable Onduleur Simple | G18: 520.00
A19: 9 | B19: nino | D19: Cable Onduleur Lux | G19: 350.00
A20: 10 | B20: mpolo | D20: Cable Réseau 50 M | G20: 400.00
A21: 11 | B21: mohamed | D21: Casque DUNTH DU-808MV | G21: 150.00
A22: 12 | B22: MAH | D22: Adaptateur Parléle / USB | G22: 280.00
A23: 13 | B23: loulou | D23: Adaptateur PS2 / USB Game Pad | G23: 120.00

Sheet Caisse (hidden)
E4: =E45+C46-D46 -> 45,000.00
B7: Banque | C7: 50,010.00
B8: C.C.P | C8: 75,010.00
B9: Cofre
B10: Autre | C10: 100,010.00
B11: Crédit
B12: Mgasin | C12: 125,010.00
C13: =SUM(C7:C12) -> 350,040.00
B15: Stock
B16: Argent
C17: =SUM(C15:C16) -> 0
B19: Date | C19: Versements | D19: Retraits | E19: Solde
B20: 2015-12-02 | E20: 25,000.00
B21: 2010-12-02 | C21: 25,000.00 | E21: =E20+C21-D21 -> 50,000.00
B22: 15/12/2010 | D22: 5,000.00 | E22: =E21+C22-D22 -> 45,000.00
E23: =E22+C23-D23 -> 45,000.00
E24: 45,000.00
E25: 45,000.00
E26: 45,000.00
E27: 45,000.00
E28: 45,000.00
E29: 45,000.00
E30: 45,000.00
E31: 45,000.00
E32: 45,000.00
E33: 45,000.00
E34: 45,000.00
E35: 45,000.00
E36: 45,000.00
E37: 45,000.00
E38: 45,000.00
E39: 45,000.00
E40: 45,000.00
E41: 45,000.00
E42: 45,000.00
E43: 45,000.00
E44: 45,000.00
E45: 45,000.00
E46: 45,000.00
E47: 45,000.00
E48: 45,000.00
E49: 45,000.00
E50: 45,000.00
E51: 45,000.00
E52: 45,000.00
E53: 45,000.00
E54: 45,000.00
E55: 45,000.00
E56: 45,000.00
E57: 45,000.00
E58: 45,000.00
E59: 45,000.00
E60: 45,000.00
E61: 45,000.00
E62: 45,000.00
E63: 45,000.00
E64: 45,000.00
E65: 45,000.00
E66: 45,000.00
E67: 45,000.00
E68: 45,000.00
E69: 45,000.00
E70: 45,000.00
E71: 45,000.00
E72: 45,000.00
E73: 45,000.00
E74: 45,000.00
E75: 45,000.00
E76: 45,000.00
E77: 45,000.00
E78: 45,000.00
E79: 45,000.00
E80: 45,000.00
E81: 45,000.00
E82: 45,000.00
E83: 45,000.00
E84: 45,000.00
E85: 45,000.00
E86: 45,000.00
E87: =E86+C87-D87 -> 45,000.00
E88: 45,000.00
E89: 45,000.00
E90: 45,000.00
E91: 45,000.00
E92: 45,000.00
E93: 45,000.00
E94: 45,000.00
E95: 45,000.00
E96: 45,000.00
E97: 45,000.00
E98: 45,000.00
E99: 45,000.00
E100: 45,000.00
E101: 45,000.00
E102: 45,000.00
E103: 45,000.00
E104: 45,000.00
E105: 45,000.00
E106: 45,000.00
E107: 45,000.00
E108: 45,000.00
E109: 45,000.00
E110: 45,000.00
E111: 45,000.00
E112: 45,000.00
E113: 45,000.00
